Workbook

Sheet Introduction
A1: Cash Sweep, Re-Financing and Merchant Prices
B3: Website Link Describing Re-financing
B5: Video Describing Re-financing and Cash Sweep
B7: Powerpoint Slides Reference

Sheet FM with Re-financing
A1: Timeline
B2: Period | F2: =AN2 -> 33 | G2: 0 | H2: 1 | I2: 2 | J2: 3 | K2: 4 | L2: 5 | M2: 6 | N2: 7 | O2: 8 | P2: 9 | Q2: 10 | R2: 11 | S2: 12 | T2: 13 | U2: 14 | V2: 15 | W2: 16 | X2: 17 | Y2: 18 | Z2: 19 | AA2: 20 | AB2: 21 | AC2: 22 | AD2: 23 | AE2: 24 | AF2: 25 | AG2: 26 | AH2: 27 | AI2: 28 | AJ2: 29 | AK2: 30 | AL2: 31 | AM2: 32 | AN2: 33
A4: Operating assumptions
B5: EPC cost | E5: USD mn | F5: 13655
B7: Capacity | E7: BCF | F7: 800
G8: 1 | H8: 5 | I8: 10 | J8: 15
B9: Volumes | G9: 450 | H9: 600 | I9: 700 | J9: 700
B11: Conversion | E11: Barrel to BCF | F11: =1/6 -> 0.1666666667
B12: Operating cost | E12: USD per BCF | F12: 2.4
B14: Price | E14: USD/barrel | F14: =Sensitivity!D3 -> 25.7
B15: Cash Flow Sensitivity | E15: % | F15: =Sensitivity!D5 -> 1
A17: Financing assumptions
B18: Debt size | E18: % | F18: =P19/100 -> 0.9
B19: Debt tenure | E19: yrs | F19: =P20 -> 25 | N19: Actual | O19: =F173 -> 1.3 | P19: 90
B20: Interest rate | E20: % p.a. | F20: 0.05 | N20: Target | O20: =F22 -> 1.5 | P20: 25
B21: Cash flow Sweep | E21: % | F21: =G21/100 -> 0 | G21: 0 | N21: Difference | O21: =O19-O20 -> -0.2
B22: Target DSCR | F22: 1.5
B23: Size from Debt to Capital | E23: switch | F23: TRUE
B24: Sculpted/Level | E24: switch | F24: TRUE
A26: Re-financing Assumptions | G26: First | H26: Second | I26: Third
B27: Date of Re-financing | G27: =first -> 10 | H27: =second -> 99 | I27: =third -> 99
B28: DSCR for Re-financing | G28: 1.3 | H28: 1.25 | I28: 1.2
B29: Tail for Re-financing | G29: 4 | H29: 2 | I29: 0
B30: End of Repayment | G30: =F2-G29 -> 29 | H30: =F2-H29 -> 31 | I30: =F2-I29 -> 33
B31: Interest Rate | G31: 0.04 | H31: 0.04 | I31: 0.04
B32: Sweep | G32: 0 | H32: 0 | I32: 0
A34: Operating analysis and pre-tax cash flow
B35: Project volumes | E35: BCF | F35: =F7 -> 800 | H35: =LOOKUP(H2,8:8,9:9) -> 450 | I35: 450 | J35: 450 | K35: 450 | L35: 600 | M35: 600 | N35: 600 | O35: 600 | P35: 600 | Q35: 700 | R35: 700 | S35: 700 | T35: 700 | U35: 700 | V35: 700 | W35: 700 | X35: 700 | Y35: 700 | Z35: 700 | AA35: 700 | AB35: =LOOKUP(AB2,8:8,9:9) -> 700 | AC35: 700 | AD35: 700 | AE35: 700 | AF35: 700 | AG35: 700 | AH35: 700 | AI35: 700 | AJ35: 700 | AK35: 700 | AL35: 700 | AM35: 700 | AN35: 700
B36: Capital expenditures | E36: USD mn | G36: =F5 -> 13655
B38: Revenues
C39: Oil price | E39: USD per barrel | F39: =F14 -> 25.7 | H39: =$F$39 -> 25.7 | I39: =$F$39 -> 25.7 | J39: 25.7 | K39: 25.7 | L39: 25.7 | M39: 25.7 | N39: 25.7 | O39: 25.7 | P39: 25.7 | Q39: 25.7 | R39: 25.7 | S39: 25.7 | T39: 25.7 | U39: 25.7 | V39: 25.7 | W39: 25.7 | X39: 25.7 | Y39: 25.7 | Z39: 25.7 | AA39: 25.7 | AB39: 25.7 | AC39: 25.7 | AD39: 25.7 | AE39: 25.7 | AF39: 25.7 | AG39: 25.7 | AH39: 25.7 | AI39: 25.7 | AJ39: 25.7 | AK39: 25.7 | AL39: 25.7 | AM39: 25.7 | AN39: 25.7
C40: Gas to oil conversion | E40: Barrel per BCF | F40: =F11 -> 0.1666666667 | H40: =$F$40 -> 0.1666666667 | I40: =$F$40 -> 0.1666666667 | J40: 0.1666666667 | K40: 0.1666666667 | L40: 0.1666666667 | M40: 0.1666666667 | N40: 0.1666666667 | O40: 0.1666666667 | P40: 0.1666666667 | Q40: 0.1666666667 | R40: 0.1666666667 | S40: 0.1666666667 | T40: 0.1666666667 | U40: 0.1666666667 | V40: 0.1666666667 | W40: 0.1666666667 | X40: 0.1666666667 | Y40: 0.1666666667 | Z40: 0.1666666667 | AA40: 0.1666666667 | AB40: 0.1666666667 | AC40: 0.1666666667 | AD40: 0.1666666667 | AE40: 0.1666666667 | AF40: 0.1666666667 | AG40: 0.1666666667 | AH40: 0.1666666667 | AI40: 0.1666666667 | AJ40: 0.1666666667 | AK40: 0.1666666667 | AL40: 0.1666666667 | AM40: 0.1666666667 | AN40: 0.1666666667
C41: Gas price | E41: USD per BCF | H41: =H39*H40 -> 4.283333333 | I41: =I39*I40 -> 4.283333333 | J41: 4.283333333 | K41: 4.283333333 | L41: 4.283333333 | M41: 4.283333333 | N41: 4.283333333 | O41: 4.283333333 | P41: 4.283333333 | Q41: 4.283333333 | R41: 4.283333333 | S41: 4.283333333 | T41: 4.283333333 | U41: 4.283333333 | V41: 4.283333333 | W41: 4.283333333 | X41: 4.283333333 | Y41: 4.283333333 | Z41: 4.283333333 | AA41: 4.283333333 | AB41: =AB39*AB40 -> 4.283333333 | AC41: 4.283333333 | AD41: 4.283333333 | AE41: 4.283333333 | AF41: 4.283333333 | AG41: 4.283333333 | AH41: 4.283333333 | AI41: 4.283333333 | AJ41: 4.283333333 | AK41: 4.283333333 | AL41: 4.283333333 | AM41: 4.283333333 | AN41: 4.283333333
D42: Revenues | E42: USD mn | H42: =H41*H35 -> 1927.5 | I42: =I41*I35 -> 1927.5 | J42: 1927.5 | K42: 1927.5 | L42: 2570 | M42: 2570 | N42: 2570 | O42: 2570 | P42: 2570 | Q42: 2998.333333 | R42: 2998.333333 | S42: 2998.333333 | T42: 2998.333333 | U42: 2998.333333 | V42: 2998.333333 | W42: 2998.333333 | X42: 2998.333333 | Y42: 2998.333333 | Z42: 2998.333333 | AA42: 2998.333333 | AB42: =AB41*AB35 -> 2998.333333 | AC42: 2998.333333 | AD42: 2998.333333 | AE42: 2998.333333 | AF42: 2998.333333 | AG42: 2998.333333 | AH42: 2998.333333 | AI42: 2998.333333 | AJ42: 2998.333333 | AK42: 2998.333333 | AL42: 2998.333333 | AM42: 2998.333333 | AN42: 2998.333333
B44: Operating costs
C45: Operating costs per BCF | E45: USD per BCF | F45: =F12 -> 2.4 | H45: =$F$45 -> 2.4 | I45: =$F$45 -> 2.4 | J45: 2.4 | K45: 2.4 | L45: 2.4 | M45: 2.4 | N45: 2.4 | O45: 2.4 | P45: 2.4 | Q45: 2.4 | R45: 2.4 | S45: 2.4 | T45: 2.4 | U45: 2.4 | V45: 2.4 | W45: 2.4 | X45: 2.4 | Y45: 2.4 | Z45: 2.4 | AA45: 2.4 | AB45: 2.4 | AC45: 2.4 | AD45: 2.4 | AE45: 2.4 | AF45: 2.4 | AG45: 2.4 | AH45: 2.4 | AI45: 2.4 | AJ45: 2.4 | AK45: 2.4 | AL45: 2.4 | AM45: 2.4 | AN45: 2.4
D46: Total operating costs | E46: USD mn | H46: =H45*H35 -> 1080 | I46: =I45*I35 -> 1080 | J46: 1080 | K46: 1080 | L46: 1440 | M46: 1440 | N46: 1440 | O46: 1440 | P46: 1440 | Q46: 1680 | R46: 1680 | S46: 1680 | T46: 1680 | U46: 1680 | V46: 1680 | W46: 1680 | X46: 1680 | Y46: 1680 | Z46: 1680 | AA46: 1680 | AB46: =AB45*AB35 -> 1680 | AC46: 1680 | AD46: 1680 | AE46: 1680 | AF46: 1680 | AG46: 1680 | AH46: 1680 | AI46: 1680 | AJ46: 1680 | AK46: 1680 | AL46: 1680 | AM46: 1680 | AN46: 1680
D48: Cash Flow Before Senstivity | E48: USD mn | H48: =H42-H46 -> 847.5 | I48: =I42-I46 -> 847.5 | J48: 847.5 | K48: 847.5 | L48: 1130 | M48: 1130 | N48: 1130 | O48: 1130 | P48: 1130 | Q48: 1318.333333 | R48: 1318.333333 | S48: 1318.333333 | T48: 1318.333333 | U48: 1318.333333 | V48: 1318.333333 | W48: 1318.333333 | X48: 1318.333333 | Y48: 1318.333333 | Z48: 1318.333333 | AA48: 1318.333333 | AB48: =AB42-AB46 -> 1318.333333 | AC48: 1318.333333 | AD48: 1318.333333 | AE48: 1318.333333 | AF48: 1318.333333 | AG48: 1318.333333 | AH48: 1318.333333 | AI48: 1318.333333 | AJ48: 1318.333333 | AK48: 1318.333333 | AL48: 1318.333333 | AM48: 1318.333333 | AN48: 1318.333333
D49: Cash Flow After Sensitivity | E49: USD mn | F49: =F15 -> 1 | H49: =H48*$F$49 -> 847.5 | I49: =I48*$F$49 -> 847.5 | J49: 847.5 | K49: 847.5 | L49: 1130 | M49: 1130 | N49: 1130 | O49: 1130 | P49: 1130 | Q49: 1318.333333 | R49: 1318.333333 | S49: 1318.333333 | T49: 1318.333333 | U49: 1318.333333 | V49: 1318.333333 | W49: 1318.333333 | X49: 1318.333333 | Y49: 1318.333333 | Z49: 1318.333333 | AA49: 1318.333333 | AB49: =AB48*$F$49 -> 1318.333333 | AC49: 1318.333333 | AD49: 1318.333333 | AE49: 1318.333333 | AF49: 1318.333333 | AG49: 1318.333333 | AH49: 1318.333333 | AI49: 1318.333333 | AJ49: 1318.333333 | AK49: 1318.333333 | AL49: 1318.333333 | AM49: 1318.333333 | AN49: 1318.333333
D51: Pre-tax cash flow | E51: USD mn | G51: =G42-G46-G36 -> -13655 | H51: =H49 -> 847.5 | I51: =I49 -> 847.5 | J51: 847.5 | K51: 847.5 | L51: 1130 | M51: 1130 | N51: 1130 | O51: 1130 | P51: 1130 | Q51: 1318.333333 | R51: 1318.333333 | S51: 1318.333333 | T51: 1318.333333 | U51: 1318.333333 | V51: 1318.333333 | W51: 1318.333333 | X51: 1318.333333 | Y51: 1318.333333 | Z51: 1318.333333 | AA51: 1318.333333 | AB51: =AB49 -> 1318.333333 | AC51: 1318.333333 | AD51: 1318.333333 | AE51: 1318.333333 | AF51: 1318.333333 | AG51: 1318.333333 | AH51: 1318.333333 | AI51: 1318.333333 | AJ51: 1318.333333 | AK51: 1318.333333 | AL51: 1318.333333 | AM51: 1318.333333 | AN51: 1318.333333
D53: Project IRR | E53: % | G53: =IRR(51:51) -> 0.07602871047
D54: NPV of operating costs | E54: USD mn | F54: 0.1 | G54: =NPV(F54,46:46) -> 13553.32908
A56: Project financing
B57: Uses and sources of funds
C58: Uses of funds
D59: EPC cost | G59: =F5 -> 13655
C61: Sources of funds
D62: Debt (True is Debt/Cap) | E62: =F23 -> TRUE | F62: =F18 -> 0.9 | G62: =IF(E62,F62*G59,G67) -> 12289.5 | H62: =G62/G64 -> 0.9
D63: Equity | G63: =G59-G62 -> 1365.5
D64: Total sources | G64: =SUM(G62:G63) -> 13655
C66: PV of CFADS | F66: =F67 -> 0.05 | G66: =E76 -> 16240.14615
C67: PV of Debt Service from Sculpting | F67: =F20 -> 0.05 | G67: =NPV(F67,H77:AA77) -> 10661.63294
C68: Debt | G68: =G62 -> 12289.5
C69: LLCR from Debt | G69: =G66/G62 -> 1.321465166
C71: DSCR Input | G71: =F22 -> 1.5
C72: DSCR Applied in Sculpting | E72: =F23 -> TRUE | G72: =IF(E72,G69,G71) -> 1.321465166
B74: Debt Switch | F74: =F19 -> 25 | H74: =H2<=$F$74 -> TRUE | I74: TRUE | J74: TRUE | K74: TRUE | L74: TRUE | M74: TRUE | N74: TRUE | O74: TRUE | P74: TRUE | Q74: TRUE | R74: TRUE | S74: TRUE | T74: TRUE | U74: TRUE | V74: TRUE | W74: TRUE | X74: TRUE | Y74: TRUE | Z74: TRUE | AA74: TRUE | AB74: =AB2<=$F$74 -> TRUE | AC74: TRUE | AD74: TRUE | AE74: TRUE | AF74: TRUE | AG74: FALSE | AH74: FALSE | AI74: FALSE | AJ74: FALSE | AK74: FALSE | AL74: FALSE | AM74: FALSE | AN74: FALSE
B75: Sculpted
C76: CFADS | E76: =NPV(F76,H76:AN76) -> 16240.14615 | F76: =F20 -> 0.05 | H76: =H51*H74 -> 847.5 | I76: 847.5 | J76: 847.5 | K76: 847.5 | L76: 1130 | M76: 1130 | N76: 1130 | O76: 1130 | P76: 1130 | Q76: 1318.333333 | R76: 1318.333333 | S76: 1318.333333 | T76: 1318.333333 | U76: 1318.333333 | V76: 1318.333333 | W76: 1318.333333 | X76: 1318.333333 | Y76: 1318.333333 | Z76: 1318.333333 | AA76: 1318.333333 | AB76: =AB51*AB74 -> 1318.333333 | AC76: 1318.333333 | AD76: 1318.333333 | AE76: 1318.333333 | AF76: 1318.333333 | AG76: 0 | AH76: 0 | AI76: 0 | AJ76: 0 | AK76: 0 | AL76: 0 | AM76: 0 | AN76: 0
C77: Debt Service | F77: =G72 -> 1.321465166 | H77: =H76/$F$77 -> 641.3335909 | I77: 641.3335909 | J77: 641.3335909 | K77: 641.3335909 | L77: 855.1114546 | M77: 855.1114546 | N77: 855.1114546 | O77: 855.1114546 | P77: 855.1114546 | Q77: 997.6300304 | R77: 997.6300304 | S77: 997.6300304 | T77: 997.6300304 | U77: 997.6300304 | V77: 997.6300304 | W77: 997.6300304 | X77: 997.6300304 | Y77: 997.6300304 | Z77: 997.6300304 | AA77: 997.6300304 | AB77: =AB76/$F$77 -> 997.6300304 | AC77: 997.6300304 | AD77: 997.6300304 | AE77: 997.6300304 | AF77: 997.6300304 | AG77: 0 | AH77: 0 | AI77: 0 | AJ77: 0 | AK77: 0 | AL77: 0 | AM77: 0 | AN77: 0
C78: Repayment | H78: =H77-H91 -> 26.85859095 | I78: =I77-I91 -> 28.2015205 | J78: 29.61159652 | K78: 31.09217635 | L78: 246.4246488 | M78: 258.7458813 | N78: 271.6831753 | O78: 285.2673341 | P78: 299.5307008 | Q78: 457.0258116 | R78: 997.6300304 | S78: 997.6300304 | T78: 997.6300304 | U78: 997.6300304 | V78: 997.6300304 | W78: 997.6300304 | X78: 997.6300304 | Y78: 997.6300304 | Z78: 997.6300304 | AA78: 997.6300304 | AB78: =AB77-AB91 -> 997.6300304 | AC78: 997.6300304 | AD78: 997.6300304 | AE78: 997.6300304 | AF78: 997.6300304 | AG78: 0 | AH78: 0 | AI78: 0 | AJ78: 0 | AK78: 0 | AL78: 0 | AM78: 0 | AN78: 0
B80: Level
C81: Repayment | E81: =G62 -> 12289.5 | F81: =F74 -> 25 | H81: =$E$81/$F$81*H74 -> 491.58 | I81: =$E$81/$F$81*I74 -> 491.58 | J81: 491.58 | K81: 491.58 | L81: 491.58 | M81: 491.58 | N81: 491.58 | O81: 491.58 | P81: 491.58 | Q81: 491.58 | R81: 491.58 | S81: 491.58 | T81: 491.58 | U81: 491.58 | V81: 491.58 | W81: 491.58 | X81: 491.58 | Y81: 491.58 | Z81: 491.58 | AA81: 491.58 | AB81: =$E$81/$F$81*AB74 -> 491.58 | AC81: 491.58 | AD81: 491.58 | AE81: 491.58 | AF81: 491.58 | AG81: 0 | AH81: 0 | AI81: 0 | AJ81: 0 | AK81: 0 | AL81: 0 | AM81: 0 | AN81: 0
B83: Repayment Applied (Scuplt =true) | E83: =F24 -> TRUE | H83: =IF($E$83,H78,H81) -> 26.85859095 | I83: =IF($E$83,I78,I81) -> 28.2015205 | J83: 29.61159652 | K83: 31.09217635 | L83: 246.4246488 | M83: 258.7458813 | N83: 271.6831753 | O83: 285.2673341 | P83: 299.5307008 | Q83: 457.0258116 | R83: 997.6300304 | S83: 997.6300304 | T83: 997.6300304 | U83: 997.6300304 | V83: 997.6300304 | W83: 997.6300304 | X83: 997.6300304 | Y83: 997.6300304 | Z83: 997.6300304 | AA83: 997.6300304 | AB83: =IF($E$83,AB78,AB81) -> 997.6300304 | AC83: 997.6300304 | AD83: 997.6300304 | AE83: 997.6300304 | AF83: 997.6300304 | AG83: 0 | AH83: 0 | AI83: 0 | AJ83: 0 | AK83: 0 | AL83: 0 | AM83: 0 | AN83: 0
B85: Debt schedule
C86: Opening balance | H86: =G90 -> 12289.5 | I86: =H90 -> 12262.64141 | J86: 12234.43989 | K86: 12204.82829 | L86: 12173.73612 | M86: 11927.31147 | N86: 11668.56559 | O86: 11396.88241 | P86: 11111.61508 | Q86: 10812.08438 | R86: 0 | S86: 0 | T86: 0 | U86: 0 | V86: 0 | W86: 0 | X86: 0 | Y86: 0 | Z86: 0 | AA86: 0 | AB86: =AA90 -> 0 | AC86: =AB90 -> 0 | AD86: =AC90 -> 0 | AE86: =AD90 -> 0 | AF86: =AE90 -> 0 | AG86: =AF90 -> 0 | AH86: =AG90 -> 0 | AI86: =AH90 -> 0 | AJ86: =AI90 -> 0 | AK86: =AJ90 -> 0 | AL86: =AK90 -> 0 | AM86: =AL90 -> 0 | AN86: =AM90 -> 0
C87: Scheduled Repayment | F87: =F19 -> 25 | H87: =MIN(H83,H86) -> 26.85859095 | I87: =MIN(I83,I86) -> 28.2015205 | J87: 29.61159652 | K87: 31.09217635 | L87: 246.4246488 | M87: 258.7458813 | N87: 271.6831753 | O87: 285.2673341 | P87: 299.5307008 | Q87: 457.0258116 | R87: 0 | S87: 0 | T87: 0 | U87: 0 | V87: 0 | W87: 0 | X87: 0 | Y87: 0 | Z87: 0 | AA87: 0 | AB87: =MIN(AB83,AB86) -> 0 | AC87: 0 | AD87: 0 | AE87: 0 | AF87: 0 | AG87: 0 | AH87: 0 | AI87: 0 | AJ87: 0 | AK87: 0 | AL87: 0 | AM87: 0 | AN87: 0
C88: Pre-payment from Sweep | H88: =H157 -> 0 | I88: =I157 -> 0 | J88: 0 | K88: 0 | L88: 0 | M88: 0 | N88: 0 | O88: 0 | P88: 0 | Q88: 0 | R88: 0 | S88: 0 | T88: 0 | U88: 0 | V88: 0 | W88: 0 | X88: 0 | Y88: 0 | Z88: 0 | AA88: 0 | AB88: =AB157 -> 0 | AC88: 0 | AD88: 0 | AE88: 0 | AF88: 0 | AG88: 0 | AH88: 0 | AI88: 0 | AJ88: 0 | AK88: 0 | AL88: 0 | AM88: 0 | AN88: 0
C89: Repayment at Re-financing | H89: =(H86-H87-H88)*H103 -> 0 | I89: =(I86-I87-I88)*I103 -> 0 | J89: 0 | K89: 0 | L89: 0 | M89: 0 | N89: 0 | O89: 0 | P89: 0 | Q89: 10355.05856 | R89: 0 | S89: 0 | T89: 0 | U89: 0 | V89: 0 | W89: 0 | X89: 0 | Y89: 0 | Z89: 0 | AA89: 0 | AB89: =(AB86-AB87-AB88)*AB103 -> 0 | AC89: 0 | AD89: 0 | AE89: 0 | AF89: 0 | AG89: 0 | AH89: 0 | AI89: 0 | AJ89: 0 | AK89: 0 | AL89: 0 | AM89: 0 | AN89: 0
C90: Closing balance | G90: =G62 -> 12289.5 | H90: =H86-H87-H88-H89 -> 12262.64141 | I90: =I86-I87-I88-I89 -> 12234.43989 | J90: 12204.82829 | K90: 12173.73612 | L90: 11927.31147 | M90: 11668.56559 | N90: 11396.88241 | O90: 11111.61508 | P90: 10812.08438 | Q90: 0 | R90: 0 | S90: 0 | T90: 0 | U90: 0 | V90: 0 | W90: 0 | X90: 0 | Y90: 0 | Z90: 0 | AA90: 0 | AB90: =AB86-AB87-AB88-AB89 -> 0 | AC90: 0 | AD90: 0 | AE90: 0 | AF90: 0 | AG90: 0 | AH90: 0 | AI90: 0 | AJ90: 0 | AK90: 0 | AL90: 0 | AM90: 0 | AN90: 0
C91: Interest | F91: =$F$20 -> 0.05 | H91: =H86*$F$91 -> 614.475 | I91: 613.1320705 | J91: 611.7219944 | K91: 610.2414146 | L91: 608.6868058 | M91: 596.3655733 | N91: 583.4282793 | O91: 569.8441205 | P91: 555.5807538 | Q91: 540.6042188 | R91: 0 | S91: 0 | T91: 0 | U91: 0 | V91: 0 | W91: 0 | X91: 0 | Y91: 0 | Z91: 0 | AA91: 0 | AB91: =AB86*$F$91 -> 0 | AC91: 0 | AD91: 0 | AE91: 0 | AF91: 0 | AG91: 0 | AH91: 0 | AI91: 0 | AJ91: 0 | AK91: 0 | AL91: 0 | AM91: 0 | AN91: 0
B93: Defaulted Debt
C94: Opening Debt | H94: =G98 -> 0 | I94: =H98 -> 0 | J94: 0 | K94: 0 | L94: 0 | M94: 0 | N94: 0 | O94: 0 | P94: 0 | Q94: 0 | R94: 0 | S94: 0 | T94: 0 | U94: 0 | V94: 0 | W94: 0 | X94: 0 | Y94: 0 | Z94: 0 | AA94: 0 | AB94: =AA98 -> 0 | AC94: =AB98 -> 0 | AD94: =AC98 -> 0 | AE94: =AD98 -> 0 | AF94: =AE98 -> 0 | AG94: =AF98 -> 0 | AH94: =AG98 -> 0 | AI94: =AH98 -> 0 | AJ94: =AI98 -> 0 | AK94: =AJ98 -> 0 | AL94: =AK98 -> 0 | AM94: =AL98 -> 0 | AN94: =AM98 -> 0
C95: Add: Default | H95: =H159 -> 0 | I95: =I159 -> 0 | J95: 0 | K95: 0 | L95: 0 | M95: 0 | N95: 0 | O95: 0 | P95: 0 | Q95: 0 | R95: 0 | S95: 0 | T95: 0 | U95: 0 | V95: 0 | W95: 0 | X95: 0 | Y95: 0 | Z95: 0 | AA95: 0 | AB95: =AB159 -> 0 | AC95: 0 | AD95: 0 | AE95: 0 | AF95: 0 | AG95: 0 | AH95: 0 | AI95: 0 | AJ95: 0 | AK95: 0 | AL95: 0 | AM95: 0 | AN95: 0
C96: Less: Repayment of Default | H96: =H160 -> 0 | I96: =I160 -> 0 | J96: 0 | K96: 0 | L96: 0 | M96: 0 | N96: 0 | O96: 0 | P96: 0 | Q96: 0 | R96: 0 | S96: 0 | T96: 0 | U96: 0 | V96: 0 | W96: 0 | X96: 0 | Y96: 0 | Z96: 0 | AA96: 0 | AB96: =AB160 -> 0 | AC96: 0 | AD96: 0 | AE96: 0 | AF96: 0 | AG96: 0 | AH96: 0 | AI96: 0 | AJ96: 0 | AK96: 0 | AL96: 0 | AM96: 0 | AN96: 0
C97: Repayment at Re-financing | H97: =(H94+H95-H96)*H103 -> 0 | I97: =(I94+I95-I96)*I103 -> 0 | J97: 0 | K97: 0 | L97: 0 | M97: 0 | N97: 0 | O97: 0 | P97: 0 | Q97: 0 | R97: 0 | S97: 0 | T97: 0 | U97: 0 | V97: 0 | W97: 0 | X97: 0 | Y97: 0 | Z97: 0 | AA97: 0 | AB97: =(AB94+AB95-AB96)*AB103 -> 0 | AC97: 0 | AD97: 0 | AE97: 0 | AF97: 0 | AG97: 0 | AH97: 0 | AI97: 0 | AJ97: 0 | AK97: 0 | AL97: 0 | AM97: 0 | AN97: 0
C98: Closing Balance | H98: =H94+H95-H96 -> 0 | I98: =I94+I95-I96 -> 0 | J98: 0 | K98: 0 | L98: 0 | M98: 0 | N98: 0 | O98: 0 | P98: 0 | Q98: 0 | R98: 0 | S98: 0 | T98: 0 | U98: 0 | V98: 0 | W98: 0 | X98: 0 | Y98: 0 | Z98: 0 | AA98: 0 | AB98: =AB94+AB95-AB96 -> 0 | AC98: 0 | AD98: 0 | AE98: 0 | AF98: 0 | AG98: 0 | AH98: 0 | AI98: 0 | AJ98: 0 | AK98: 0 | AL98: 0 | AM98: 0 | AN98: 0
C99: Interest on Default | F99: =F20 -> 0.05 | H99: =$F$99*H94 -> 0 | I99: =$F$99*I94 -> 0 | J99: 0 | K99: 0 | L99: 0 | M99: 0 | N99: 0 | O99: 0 | P99: 0 | Q99: 0 | R99: 0 | S99: 0 | T99: 0 | U99: 0 | V99: 0 | W99: 0 | X99: 0 | Y99: 0 | Z99: 0 | AA99: 0 | AB99: =$F$99*AB94 -> 0 | AC99: 0 | AD99: 0 | AE99: 0 | AF99: 0 | AG99: 0 | AH99: 0 | AI99: 0 | AJ99: 0 | AK99: 0 | AL99: 0 | AM99: 0 | AN99: 0
B102: Re-financing 1
C103: Re-financing Switch | F103: =MIN(G27,H27,I27) -> 10 | H103: =H2=$F$103 -> FALSE | I103: =I2=$F$103 -> FALSE | J103: FALSE | K103: FALSE | L103: FALSE | M103: FALSE | N103: FALSE | O103: FALSE | P103: FALSE | Q103: TRUE | R103: FALSE | S103: FALSE | T103: FALSE | U103: FALSE | V103: FALSE | W103: FALSE | X103: FALSE | Y103: FALSE | Z103: FALSE | AA103: FALSE | AB103: =AB2=$F$103 -> FALSE | AC103: FALSE | AD103: FALSE | AE103: FALSE | AF103: FALSE | AG103: FALSE | AH103: FALSE | AI103: FALSE | AJ103: FALSE | AK103: FALSE | AL103: FALSE | AM103: FALSE | AN103: FALSE
C104: Repayment Switch | F104: =G30 -> 29 | H104: =AND(H2>$F$103,H2<=$F$104) -> FALSE | I104: =AND(I2>$F$103,I2<=$F$104) -> FALSE | J104: FALSE | K104: FALSE | L104: FALSE | M104: FALSE | N104: FALSE | O104: FALSE | P104: FALSE | Q104: FALSE | R104: TRUE | S104: TRUE | T104: TRUE | U104: TRUE | V104: TRUE | W104: TRUE | X104: TRUE | Y104: TRUE | Z104: TRUE | AA104: TRUE | AB104: =AND(AB2>$F$103,AB2<=$F$104) -> TRUE | AC104: TRUE | AD104: TRUE | AE104: TRUE | AF104: TRUE | AG104: TRUE | AH104: TRUE | AI104: TRUE | AJ104: TRUE | AK104: FALSE | AL104: FALSE | AM104: FALSE | AN104: FALSE
C105: CFADS | H105: =IF(H104,H49*H104) -> FALSE | I105: =IF(I104,I49*I104) -> FALSE | J105: FALSE | K105: FALSE | L105: FALSE | M105: FALSE | N105: FALSE | O105: FALSE | P105: FALSE | Q105: FALSE | R105: 1318.333333 | S105: 1318.333333 | T105: 1318.333333 | U105: 1318.333333 | V105: 1318.333333 | W105: 1318.333333 | X105: 1318.333333 | Y105: 1318.333333 | Z105: 1318.333333 | AA105: 1318.333333 | AB105: =IF(AB104,AB49*AB104) -> 1318.333333 | AC105: 1318.333333 | AD105: 1318.333333 | AE105: 1318.333333 | AF105: 1318.333333 | AG105: 1318.333333 | AH105: 1318.333333 | AI105: 1318.333333 | AJ105: 1318.333333 | AK105: FALSE | AL105: FALSE | AM105: FALSE | AN105: FALSE
C106: Debt Service | F106: =G28 -> 1.3 | H106: =IF(H104,H105/$F$106) -> FALSE | I106: =IF(I104,I105/$F$106) -> FALSE | J106: FALSE | K106: FALSE | L106: FALSE | M106: FALSE | N106: FALSE | O106: FALSE | P106: FALSE | Q106: FALSE | R106: 1014.102564 | S106: 1014.102564 | T106: 1014.102564 | U106: 1014.102564 | V106: 1014.102564 | W106: 1014.102564 | X106: 1014.102564 | Y106: 1014.102564 | Z106: 1014.102564 | AA106: 1014.102564 | AB106: =IF(AB104,AB105/$F$106) -> 1014.102564 | AC106: 1014.102564 | AD106: 1014.102564 | AE106: 1014.102564 | AF106: 1014.102564 | AG106: 1014.102564 | AH106: 1014.102564 | AI106: 1014.102564 | AJ106: 1014.102564 | AK106: FALSE | AL106: FALSE | AM106: FALSE | AN106: FALSE
C108: PV of Debt Service | E108: =NPV(F108,H106:AN106) -> 13319.16162 | F108: =G31 -> 0.04
C110: Opening Balance | H110: =G114 -> 0 | I110: =H114 -> 0 | J110: 0 | K110: 0 | L110: 0 | M110: 0 | N110: 0 | O110: 0 | P110: 0 | Q110: 0 | R110: 13319.16162 | S110: 12837.82552 | T110: 12337.23598 | U110: 11816.62285 | V110: 11275.1852 | W110: 10712.09005 | X110: 10126.47109 | Y110: 9517.427365 | Z110: 8884.021895 | AA110: 8225.280207 | AB110: =AA114 -> 7540.188851 | AC110: =AB114 -> 6827.693841 | AD110: =AC114 -> 6086.699031 | AE110: =AD114 -> 5316.064428 | AF110: =AE114 -> 4514.604441 | AG110: =AF114 -> 3681.086054 | AH110: =AG114 -> 2814.226932 | AI110: =AH114 -> 1912.693446 | AJ110: =AI114 -> 975.0986193 | AK110: =AJ114 -> 0 | AL110: =AK114 -> 0 | AM110: =AL114 -> 0 | AN110: =AM114 -> 0
C111: Add: Draws at Re-financing | E111: =E108 -> 13319.16162 | H111: =H103*$E$111 -> 0 | I111: =I103*$E$111 -> 0 | J111: 0 | K111: 0 | L111: 0 | M111: 0 | N111: 0 | O111: 0 | P111: 0 | Q111: 13319.16162 | R111: 0 | S111: 0 | T111: 0 | U111: 0 | V111: 0 | W111: 0 | X111: 0 | Y111: 0 | Z111: 0 | AA111: 0 | AB111: =AB103*$E$111 -> 0 | AC111: 0 | AD111: 0 | AE111: 0 | AF111: 0 | AG111: 0 | AH111: 0 | AI111: 0 | AJ111: 0 | AK111: 0 | AL111: 0 | AM111: 0 | AN111: 0
C112: Less: Repayment | H112: =MIN(H106-H115,H110) -> 0 | I112: =MIN(I106-I115,I110) -> 0 | J112: 0 | K112: 0 | L112: 0 | M112: 0 | N112: 0 | O112: 0 | P112: 0 | Q112: 0 | R112: 481.3360993 | S112: 500.5895432 | T112: 520.613125 | U112: 541.43765 | V112: 563.095156 | W112: 585.6189622 | X112: 609.0437207 | Y112: 633.4054695 | Z112: 658.7416883 | AA112: 685.0913558 | AB112: =MIN(AB106-AB115,AB110) -> 712.4950101 | AC112: 740.9948105 | AD112: 770.6346029 | AE112: 801.459987 | AF112: 833.5183865 | AG112: 866.8591219 | AH112: 901.5334868 | AI112: 937.5948263 | AJ112: 975.0986193 | AK112: 0 | AL112: 0 | AM112: 0 | AN112: 0
C113: Less: Repayment at Re-financing | H113: =(H110+H111-H112)*H118 -> 0 | I113: =(I110+I111-I112)*I118 -> 0 | J113: 0 | K113: 0 | L113: 0 | M113: 0 | N113: 0 | O113: 0 | P113: 0 | Q113: 0 | R113: 0 | S113: 0 | T113: 0 | U113: 0 | V113: 0 | W113: 0 | X113: 0 | Y113: 0 | Z113: 0 | AA113: 0 | AB113: =(AB110+AB111-AB112)*AB118 -> 0 | AC113: 0 | AD113: 0 | AE113: 0 | AF113: 0 | AG113: 0 | AH113: 0 | AI113: 0 | AJ113: 0 | AK113: 0 | AL113: 0 | AM113: 0 | AN113: 0
C114: Closing Balance | H114: =H110+H111-H112-H113 -> 0 | I114: =I110+I111-I112-I113 -> 0 | J114: 0 | K114: 0 | L114: 0 | M114: 0 | N114: 0 | O114: 0 | P114: 0 | Q114: 13319.16162 | R114: 12837.82552 | S114: 12337.23598 | T114: 11816.62285 | U114: 11275.1852 | V114: 10712.09005 | W114: 10126.47109 | X114: 9517.427365 | Y114: 8884.021895 | Z114: 8225.280207 | AA114: 7540.188851 | AB114: =AB110+AB111-AB112-AB113 -> 6827.693841 | AC114: 6086.699031 | AD114: 5316.064428 | AE114: 4514.604441 | AF114: 3681.086054 | AG114: 2814.226932 | AH114: 1912.693446 | AI114: 975.0986193 | AJ114: 0 | AK114: 0 | AL114: 0 | AM114: 0 | AN114: 0
C115: Interest on Re-financing | F115: =F108 -> 0.04 | H115: =H110*$F$115 -> 0 | I115: =I110*$F$115 -> 0 | J115: 0 | K115: 0 | L115: 0 | M115: 0 | N115: 0 | O115: 0 | P115: 0 | Q115: 0 | R115: 532.7664648 | S115: 513.5130209 | T115: 493.4894391 | U115: 472.6649141 | V115: 451.0074081 | W115: 428.4836019 | X115: 405.0588434 | Y115: 380.6970946 | Z115: 355.3608758 | AA115: 329.0112083 | AB115: =AB110*$F$115 -> 301.607554 | AC115: 273.1077536 | AD115: 243.4679612 | AE115: 212.6425771 | AF115: 180.5841776 | AG115: 147.2434422 | AH115: 112.5690773 | AI115: 76.50773782 | AJ115: 39.00394477 | AK115: 0 | AL115: 0 | AM115: 0 | AN115: 0
B117: Re-financing 2
C118: Re-financing Switch | F118: =MIN(MAX(H27,G27),I27) -> 99 | H118: =H2=$F$118 -> FALSE | I118: =I2=$F$118 -> FALSE | J118: FALSE | K118: FALSE | L118: FALSE | M118: FALSE | N118: FALSE | O118: FALSE | P118: FALSE | Q118: FALSE | R118: FALSE | S118: FALSE | T118: FALSE | U118: FALSE | V118: FALSE | W118: FALSE | X118: FALSE | Y118: FALSE | Z118: FALSE | AA118: FALSE | AB118: =AB2=$F$118 -> FALSE | AC118: FALSE | AD118: FALSE | AE118: FALSE | AF118: FALSE | AG118: FALSE | AH118: FALSE | AI118: FALSE | AJ118: FALSE | AK118: FALSE | AL118: FALSE | AM118: FALSE | AN118: FALSE
C119: Repayment Switch | F119: =H30 -> 31 | H119: =AND(H2>$F$118,H2<=$F$119) -> FALSE | I119: =AND(I2>$F$118,I2<=$F$119) -> FALSE | J119: FALSE | K119: FALSE | L119: FALSE | M119: FALSE | N119: FALSE | O119: FALSE | P119: FALSE | Q119: FALSE | R119: FALSE | S119: FALSE | T119: FALSE | U119: FALSE | V119: FALSE | W119: FALSE | X119: FALSE | Y119: FALSE | Z119: FALSE | AA119: FALSE | AB119: =AND(AB2>$F$118,AB2<=$F$119) -> FALSE | AC119: FALSE | AD119: FALSE | AE119: FALSE | AF119: FALSE | AG119: FALSE | AH119: FALSE | AI119: FALSE | AJ119: FALSE | AK119: FALSE | AL119: FALSE | AM119: FALSE | AN119: FALSE
C120: CFADS | H120: =H51 -> 847.5 | I120: =I51 -> 847.5 | J120: 847.5 | K120: 847.5 | L120: 1130 | M120: 1130 | N120: 1130 | O120: 1130 | P120: 1130 | Q120: 1318.333333 | R120: 1318.333333 | S120: 1318.333333 | T120: 1318.333333 | U120: 1318.333333 | V120: 1318.333333 | W120: 1318.333333 | X120: 1318.333333 | Y120: 1318.333333 | Z120: 1318.333333 | AA120: 1318.333333 | AB120: =AB51 -> 1318.333333 | AC120: 1318.333333 | AD120: 1318.333333 | AE120: 1318.333333 | AF120: 1318.333333 | AG120: 1318.333333 | AH120: 1318.333333 | AI120: 1318.333333 | AJ120: 1318.333333 | AK120: 1318.333333 | AL120: 1318.333333 | AM120: 1318.333333 | AN120: 1318.333333
C121: Debt Service | F121: =H28 -> 1.25 | H121: =IF(H119,H120/$F$121) -> FALSE | I121: =IF(I119,I120/$F$121) -> FALSE | J121: FALSE | K121: FALSE | L121: FALSE | M121: FALSE | N121: FALSE | O121: FALSE | P121: FALSE | Q121: FALSE | R121: FALSE | S121: FALSE | T121: FALSE | U121: FALSE | V121: FALSE | W121: FALSE | X121: FALSE | Y121: FALSE | Z121: FALSE | AA121: FALSE | AB121: =IF(AB119,AB120/$F$121) -> FALSE | AC121: FALSE | AD121: FALSE | AE121: FALSE | AF121: FALSE | AG121: FALSE | AH121: FALSE | AI121: FALSE | AJ121: FALSE | AK121: FALSE | AL121: FALSE | AM121: FALSE | AN121: FALSE
C123: PV of Debt Service | E123: =NPV(F123,H121:AN121) -> 0 | F123: =H31 -> 0.04
C125: Opening Balance | H125: =G129 -> 0 | I125: =H129 -> 0 | J125: 0 | K125: 0 | L125: 0 | M125: 0 | N125: 0 | O125: 0 | P125: 0 | Q125: 0 | R125: 0 | S125: 0 | T125: 0 | U125: 0 | V125: 0 | W125: 0 | X125: 0 | Y125: 0 | Z125: 0 | AA125: 0 | AB125: =AA129 -> 0 | AC125: =AB129 -> 0 | AD125: =AC129 -> 0 | AE125: =AD129 -> 0 | AF125: =AE129 -> 0 | AG125: =AF129 -> 0 | AH125: =AG129 -> 0 | AI125: =AH129 -> 0 | AJ125: =AI129 -> 0 | AK125: =AJ129 -> 0 | AL125: =AK129 -> 0 | AM125: =AL129 -> 0 | AN125: =AM129 -> 0
C126: Add: Draws at Re-financing | E126: =E123 -> 0 | H126: =$E$126*H118 -> 0 | I126: =$E$126*I118 -> 0 | J126: 0 | K126: 0 | L126: 0 | M126: 0 | N126: 0 | O126: 0 | P126: 0 | Q126: 0 | R126: 0 | S126: 0 | T126: 0 | U126: 0 | V126: 0 | W126: 0 | X126: 0 | Y126: 0 | Z126: 0 | AA126: 0 | AB126: =$E$126*AB118 -> 0 | AC126: 0 | AD126: 0 | AE126: 0 | AF126: 0 | AG126: 0 | AH126: 0 | AI126: 0 | AJ126: 0 | AK126: 0 | AL126: 0 | AM126: 0 | AN126: 0
C127: Less: Repayment | H127: =MIN(H121-H130,H125) -> 0 | I127: =MIN(I121-I130,I125) -> 0 | J127: 0 | K127: 0 | L127: 0 | M127: 0 | N127: 0 | O127: 0 | P127: 0 | Q127: 0 | R127: 0 | S127: 0 | T127: 0 | U127: 0 | V127: 0 | W127: 0 | X127: 0 | Y127: 0 | Z127: 0 | AA127: 0 | AB127: =MIN(AB121-AB130,AB125) -> 0 | AC127: 0 | AD127: 0 | AE127: 0 | AF127: 0 | AG127: 0 | AH127: 0 | AI127: 0 | AJ127: 0 | AK127: 0 | AL127: 0 | AM127: 0 | AN127: 0
C128: Less: Repayment at Re-financing | H128: =(H125+H126-H127)*H133 -> 0 | I128: =(I125+I126-I127)*I133 -> 0 | J128: 0 | K128: 0 | L128: 0 | M128: 0 | N128: 0 | O128: 0 | P128: 0 | Q128: 0 | R128: 0 | S128: 0 | T128: 0 | U128: 0 | V128: 0 | W128: 0 | X128: 0 | Y128: 0 | Z128: 0 | AA128: 0 | AB128: =(AB125+AB126-AB127)*AB133 -> 0 | AC128: 0 | AD128: 0 | AE128: 0 | AF128: 0 | AG128: 0 | AH128: 0 | AI128: 0 | AJ128: 0 | AK128: 0 | AL128: 0 | AM128: 0 | AN128: 0
C129: Closing Balance | H129: =H125+H126-H127-H128 -> 0 | I129: =I125+I126-I127-I128 -> 0 | J129: 0 | K129: 0 | L129: 0 | M129: 0 | N129: 0 | O129: 0 | P129: 0 | Q129: 0 | R129: 0 | S129: 0 | T129: 0 | U129: 0 | V129: 0 | W129: 0 | X129: 0 | Y129: 0 | Z129: 0 | AA129: 0 | AB129: =AB125+AB126-AB127-AB128 -> 0 | AC129: 0 | AD129: 0 | AE129: 0 | AF129: 0 | AG129: 0 | AH129: 0 | AI129: 0 | AJ129: 0 | AK129: 0 | AL129: 0 | AM129: 0 | AN129: 0
C130: Interest on Re-financing | F130: =F123 -> 0.04 | H130: =$F$130*H125 -> 0 | I130: =$F$130*I125 -> 0 | J130: 0 | K130: 0 | L130: 0 | M130: 0 | N130: 0 | O130: 0 | P130: 0 | Q130: 0 | R130: 0 | S130: 0 | T130: 0 | U130: 0 | V130: 0 | W130: 0 | X130: 0 | Y130: 0 | Z130: 0 | AA130: 0 | AB130: =$F$130*AB125 -> 0 | AC130: 0 | AD130: 0 | AE130: 0 | AF130: 0 | AG130: 0 | AH130: 0 | AI130: 0 | AJ130: 0 | AK130: 0 | AL130: 0 | AM130: 0 | AN130: 0
B132: Re-financing 3
C133: Re-financing Switch | F133: =MAX(I27,F118,F103) -> 99 | H133: =H2=$F$133 -> FALSE | I133: =I2=$F$133 -> FALSE | J133: FALSE | K133: FALSE | L133: FALSE | M133: FALSE | N133: FALSE | O133: FALSE | P133: FALSE | Q133: FALSE | R133: FALSE | S133: FALSE | T133: FALSE | U133: FALSE | V133: FALSE | W133: FALSE | X133: FALSE | Y133: FALSE | Z133: FALSE | AA133: FALSE | AB133: =AB2=$F$133 -> FALSE | AC133: FALSE | AD133: FALSE | AE133: FALSE | AF133: FALSE | AG133: FALSE | AH133: FALSE | AI133: FALSE | AJ133: FALSE | AK133: FALSE | AL133: FALSE | AM133: FALSE | AN133: FALSE
C134: Repayment Switch | F134: =I30 -> 33 | H134: =AND(H2>$F$133,H2<=$F$134) -> FALSE | I134: =AND(I2>$F$133,I2<=$F$134) -> FALSE | J134: FALSE | K134: FALSE | L134: FALSE | M134: FALSE | N134: FALSE | O134: FALSE | P134: FALSE | Q134: FALSE | R134: FALSE | S134: FALSE | T134: FALSE | U134: FALSE | V134: FALSE | W134: FALSE | X134: FALSE | Y134: FALSE | Z134: FALSE | AA134: FALSE | AB134: =AND(AB2>$F$133,AB2<=$F$134) -> FALSE | AC134: FALSE | AD134: FALSE | AE134: FALSE | AF134: FALSE | AG134: FALSE | AH134: FALSE | AI134: FALSE | AJ134: FALSE | AK134: FALSE | AL134: FALSE | AM134: FALSE | AN134: FALSE
C135: CFADS | H135: =H120 -> 847.5 | I135: =I120 -> 847.5 | J135: 847.5 | K135: 847.5 | L135: 1130 | M135: 1130 | N135: 1130 | O135: 1130 | P135: 1130 | Q135: 1318.333333 | R135: 1318.333333 | S135: 1318.333333 | T135: 1318.333333 | U135: 1318.333333 | V135: 1318.333333 | W135: 1318.333333 | X135: 1318.333333 | Y135: 1318.333333 | Z135: 1318.333333 | AA135: 1318.333333 | AB135: =AB120 -> 1318.333333 | AC135: 1318.333333 | AD135: 1318.333333 | AE135: 1318.333333 | AF135: 1318.333333 | AG135: 1318.333333 | AH135: 1318.333333 | AI135: 1318.333333 | AJ135: 1318.333333 | AK135: 1318.333333 | AL135: 1318.333333 | AM135: 1318.333333 | AN135: 1318.333333
C136: Debt Service | F136: =I28 -> 1.2 | H136: =IF(H134,H135/$F$136) -> FALSE | I136: =IF(I134,I135/$F$136) -> FALSE | J136: FALSE | K136: FALSE | L136: FALSE | M136: FALSE | N136: FALSE | O136: FALSE | P136: FALSE | Q136: FALSE | R136: FALSE | S136: FALSE | T136: FALSE | U136: FALSE | V136: FALSE | W136: FALSE | X136: FALSE | Y136: FALSE | Z136: FALSE | AA136: FALSE | AB136: =IF(AB134,AB135/$F$136) -> FALSE | AC136: FALSE | AD136: FALSE | AE136: FALSE | AF136: FALSE | AG136: FALSE | AH136: FALSE | AI136: FALSE | AJ136: FALSE | AK136: FALSE | AL136: FALSE | AM136: FALSE | AN136: FALSE
C138: PV of Debt Service | E138: =NPV(F138,H136:AN136) -> 0 | F138: =I31 -> 0.04
C140: Opening Balance | H140: =G144 -> 0 | I140: =H144 -> 0 | J140: 0 | K140: 0 | L140: 0 | M140: 0 | N140: 0 | O140: 0 | P140: 0 | Q140: 0 | R140: 0 | S140: 0 | T140: 0 | U140: 0 | V140: 0 | W140: 0 | X140: 0 | Y140: 0 | Z140: 0 | AA140: 0 | AB140: =AA144 -> 0 | AC140: =AB144 -> 0 | AD140: =AC144 -> 0 | AE140: =AD144 -> 0 | AF140: =AE144 -> 0 | AG140: =AF144 -> 0 | AH140: =AG144 -> 0 | AI140: =AH144 -> 0 | AJ140: =AI144 -> 0 | AK140: =AJ144 -> 0 | AL140: =AK144 -> 0 | AM140: =AL144 -> 0 | AN140: =AM144 -> 0
C141: Add: Draws at Re-financing | E141: =E138 -> 0 | H141: =$E$141*H133 -> 0 | I141: =$E$141*I133 -> 0 | J141: 0 | K141: 0 | L141: 0 | M141: 0 | N141: 0 | O141: 0 | P141: 0 | Q141: 0 | R141: 0 | S141: 0 | T141: 0 | U141: 0 | V141: 0 | W141: 0 | X141: 0 | Y141: 0 | Z141: 0 | AA141: 0 | AB141: =$E$141*AB133 -> 0 | AC141: 0 | AD141: 0 | AE141: 0 | AF141: 0 | AG141: 0 | AH141: 0 | AI141: 0 | AJ141: 0 | AK141: 0 | AL141: 0 | AM141: 0 | AN141: 0
C142: Less: Repayment | H142: =H136-H145 -> 0 | I142: =I136-I145 -> 0 | J142: 0 | K142: 0 | L142: 0 | M142: 0 | N142: 0 | O142: 0 | P142: 0 | Q142: 0 | R142: 0 | S142: 0 | T142: 0 | U142: 0 | V142: 0 | W142: 0 | X142: 0 | Y142: 0 | Z142: 0 | AA142: 0 | AB142: =AB136-AB145 -> 0 | AC142: 0 | AD142: 0 | AE142: 0 | AF142: 0 | AG142: 0 | AH142: 0 | AI142: 0 | AJ142: 0 | AK142: 0 | AL142: 0 | AM142: 0 | AN142: 0
C143: Less: Repayment at Re-financing
C144: Closing Balance | H144: =H140+H141-H142-H143 -> 0 | I144: =I140+I141-I142-I143 -> 0 | J144: 0 | K144: 0 | L144: 0 | M144: 0 | N144: 0 | O144: 0 | P144: 0 | Q144: 0 | R144: 0 | S144: 0 | T144: 0 | U144: 0 | V144: 0 | W144: 0 | X144: 0 | Y144: 0 | Z144: 0 | AA144: 0 | AB144: =AB140+AB141-AB142-AB143 -> 0 | AC144: 0 | AD144: 0 | AE144: 0 | AF144: 0 | AG144: 0 | AH144: 0 | AI144: 0 | AJ144: 0 | AK144: 0 | AL144: 0 | AM144: 0 | AN144: 0
C145: Interest on Re-financing | F145: =F138 -> 0.04 | H145: =H140*$F$145 -> 0 | I145: =I140*$F$145 -> 0 | J145: 0 | K145: 0 | L145: 0 | M145: 0 | N145: 0 | O145: 0 | P145: 0 | Q145: 0 | R145: 0 | S145: 0 | T145: 0 | U145: 0 | V145: 0 | W145: 0 | X145: 0 | Y145: 0 | Z145: 0 | AA145: 0 | AB145: =AB140*$F$145 -> 0 | AC145: 0 | AD145: 0 | AE145: 0 | AF145: 0 | AG145: 0 | AH145: 0 | AI145: 0 | AJ145: 0 | AK145: 0 | AL145: 0 | AM145: 0 | AN145: 0
C147: Total Interest | H147: =H145+H130+H115+H99+H91 -> 614.475 | I147: =I145+I130+I115+I99+I91 -> 613.1320705 | J147: 611.7219944 | K147: 610.2414146 | L147: 608.6868058 | M147: 596.3655733 | N147: 583.4282793 | O147: 569.8441205 | P147: 555.5807538 | Q147: 540.6042188 | R147: 532.7664648 | S147: 513.5130209 | T147: 493.4894391 | U147: 472.6649141 | V147: 451.0074081 | W147: 428.4836019 | X147: 405.0588434 | Y147: 380.6970946 | Z147: 355.3608758 | AA147: 329.0112083 | AB147: =AB145+AB130+AB115+AB99+AB91 -> 301.607554 | AC147: 273.1077536 | AD147: 243.4679612 | AE147: 212.6425771 | AF147: 180.5841776 | AG147: 147.2434422 | AH147: 112.5690773 | AI147: 76.50773782 | AJ147: 39.00394477 | AK147: 0 | AL147: 0 | AM147: 0 | AN147: 0
C148: Total Scheduled Repayment | H148: =H142+H127+H112+H87 -> 26.85859095 | I148: =I142+I127+I112+I87 -> 28.2015205 | J148: 29.61159652 | K148: 31.09217635 | L148: 246.4246488 | M148: 258.7458813 | N148: 271.6831753 | O148: 285.2673341 | P148: 299.5307008 | Q148: 457.0258116 | R148: 481.3360993 | S148: 500.5895432 | T148: 520.613125 | U148: 541.43765 | V148: 563.095156 | W148: 585.6189622 | X148: 609.0437207 | Y148: 633.4054695 | Z148: 658.7416883 | AA148: 685.0913558 | AB148: =AB142+AB127+AB112+AB87 -> 712.4950101 | AC148: 740.9948105 | AD148: 770.6346029 | AE148: 801.459987 | AF148: 833.5183865 | AG148: 866.8591219 | AH148: 901.5334868 | AI148: 937.5948263 | AJ148: 975.0986193 | AK148: 0 | AL148: 0 | AM148: 0 | AN148: 0
C149: Total Early Repayment from Re-financing | H149: =H143+H128+H113+H89 -> 0 | I149: =I143+I128+I113+I89 -> 0 | J149: 0 | K149: 0 | L149: 0 | M149: 0 | N149: 0 | O149: 0 | P149: 0 | Q149: 10355.05856 | R149: 0 | S149: 0 | T149: 0 | U149: 0 | V149: 0 | W149: 0 | X149: 0 | Y149: 0 | Z149: 0 | AA149: 0 | AB149: =AB143+AB128+AB113+AB89 -> 0 | AC149: 0 | AD149: 0 | AE149: 0 | AF149: 0 | AG149: 0 | AH149: 0 | AI149: 0 | AJ149: 0 | AK149: 0 | AL149: 0 | AM149: 0 | AN149: 0
C150: Total Proceeds from Re-financing | H150: =H141+H126+H111 -> 0 | I150: =I141+I126+I111 -> 0 | J150: 0 | K150: 0 | L150: 0 | M150: 0 | N150: 0 | O150: 0 | P150: 0 | Q150: 13319.16162 | R150: 0 | S150: 0 | T150: 0 | U150: 0 | V150: 0 | W150: 0 | X150: 0 | Y150: 0 | Z150: 0 | AA150: 0 | AB150: =AB141+AB126+AB111 -> 0 | AC150: 0 | AD150: 0 | AE150: 0 | AF150: 0 | AG150: 0 | AH150: 0 | AI150: 0 | AJ150: 0 | AK150: 0 | AL150: 0 | AM150: 0 | AN150: 0
A152: Cash flow waterfall
B153: CFADS | H153: =H51 -> 847.5 | I153: 847.5 | J153: 847.5 | K153: 847.5 | L153: 1130 | M153: 1130 | N153: 1130 | O153: 1130 | P153: 1130 | Q153: 1318.333333 | R153: 1318.333333 | S153: 1318.333333 | T153: 1318.333333 | U153: 1318.333333 | V153: 1318.333333 | W153: 1318.333333 | X153: 1318.333333 | Y153: 1318.333333 | Z153: 1318.333333 | AA153: 1318.333333 | AB153: =AB51 -> 1318.333333 | AC153: 1318.333333 | AD153: 1318.333333 | AE153: 1318.333333 | AF153: 1318.333333 | AG153: 1318.333333 | AH153: 1318.333333 | AI153: 1318.333333 | AJ153: 1318.333333 | AK153: 1318.333333 | AL153: 1318.333333 | AM153: 1318.333333 | AN153: 1318.333333
B154: Less interest | H154: =H147 -> 614.475 | I154: =I147 -> 613.1320705 | J154: 611.7219944 | K154: 610.2414146 | L154: 608.6868058 | M154: 596.3655733 | N154: 583.4282793 | O154: 569.8441205 | P154: 555.5807538 | Q154: 540.6042188 | R154: 532.7664648 | S154: 513.5130209 | T154: 493.4894391 | U154: 472.6649141 | V154: 451.0074081 | W154: 428.4836019 | X154: 405.0588434 | Y154: 380.6970946 | Z154: 355.3608758 | AA154: 329.0112083 | AB154: =AB147 -> 301.607554 | AC154: 273.1077536 | AD154: 243.4679612 | AE154: 212.6425771 | AF154: 180.5841776 | AG154: 147.2434422 | AH154: 112.5690773 | AI154: 76.50773782 | AJ154: 39.00394477 | AK154: 0 | AL154: 0 | AM154: 0 | AN154: 0
B155: Less repayment | H155: =H148 -> 26.85859095 | I155: =I148 -> 28.2015205 | J155: 29.61159652 | K155: 31.09217635 | L155: 246.4246488 | M155: 258.7458813 | N155: 271.6831753 | O155: 285.2673341 | P155: 299.5307008 | Q155: 457.0258116 | R155: 481.3360993 | S155: 500.5895432 | T155: 520.613125 | U155: 541.43765 | V155: 563.095156 | W155: 585.6189622 | X155: 609.0437207 | Y155: 633.4054695 | Z155: 658.7416883 | AA155: 685.0913558 | AB155: =AB148 -> 712.4950101 | AC155: 740.9948105 | AD155: 770.6346029 | AE155: 801.459987 | AF155: 833.5183865 | AG155: 866.8591219 | AH155: 901.5334868 | AI155: 937.5948263 | AJ155: 975.0986193 | AK155: 0 | AL155: 0 | AM155: 0 | AN155: 0
C156: Cash Before Sweep | H156: =H153-H154-H155 -> 206.1664091 | I156: =I153-I154-I155 -> 206.1664091 | J156: 206.1664091 | K156: 206.1664091 | L156: 274.8885454 | M156: 274.8885454 | N156: 274.8885454 | O156: 274.8885454 | P156: 274.8885454 | Q156: 320.703303 | R156: 304.2307692 | S156: 304.2307692 | T156: 304.2307692 | U156: 304.2307692 | V156: 304.2307692 | W156: 304.2307692 | X156: 304.2307692 | Y156: 304.2307692 | Z156: 304.2307692 | AA156: 304.2307692 | AB156: =AB153-AB154-AB155 -> 304.2307692 | AC156: 304.2307692 | AD156: 304.2307692 | AE156: 304.2307692 | AF156: 304.2307692 | AG156: 304.2307692 | AH156: 304.2307692 | AI156: 304.2307692 | AJ156: 304.2307692 | AK156: 1318.333333 | AL156: 1318.333333 | AM156: 1318.333333 | AN156: 1318.333333
B157: Less: Sweep | F157: =F21 -> 0 | H157: =MIN(H86-H87,MAX(H156,0)*$F$157) -> 0 | I157: =MIN(I86-I87,MAX(I156,0)*$F$157) -> 0 | J157: 0 | K157: 0 | L157: 0 | M157: 0 | N157: 0 | O157: 0 | P157: 0 | Q157: 0 | R157: 0 | S157: 0 | T157: 0 | U157: 0 | V157: 0 | W157: 0 | X157: 0 | Y157: 0 | Z157: 0 | AA157: 0 | AB157: =MIN(AB86-AB87,MAX(AB156,0)*$F$157) -> 0 | AC157: 0 | AD157: 0 | AE157: 0 | AF157: 0 | AG157: 0 | AH157: 0 | AI157: 0 | AJ157: 0 | AK157: 0 | AL157: 0 | AM157: 0 | AN157: 0
C158: Cash After Sweep | H158: =H156-H157 -> 206.1664091 | I158: =I156-I157 -> 206.1664091 | J158: 206.1664091 | K158: 206.1664091 | L158: 274.8885454 | M158: 274.8885454 | N158: 274.8885454 | O158: 274.8885454 | P158: 274.8885454 | Q158: 320.703303 | R158: 304.2307692 | S158: 304.2307692 | T158: 304.2307692 | U158: 304.2307692 | V158: 304.2307692 | W158: 304.2307692 | X158: 304.2307692 | Y158: 304.2307692 | Z158: 304.2307692 | AA158: 304.2307692 | AB158: =AB156-AB157 -> 304.2307692 | AC158: 304.2307692 | AD158: 304.2307692 | AE158: 304.2307692 | AF158: 304.2307692 | AG158: 304.2307692 | AH158: 304.2307692 | AI158: 304.2307692 | AJ158: 304.2307692 | AK158: 1318.333333 | AL158: 1318.333333 | AM158: 1318.333333 | AN158: 1318.333333
B159: Add: Default | H159: =MAX(-H158,0) -> 0 | I159: =MAX(-I158,0) -> 0 | J159: 0 | K159: 0 | L159: 0 | M159: 0 | N159: 0 | O159: 0 | P159: 0 | Q159: 0 | R159: 0 | S159: 0 | T159: 0 | U159: 0 | V159: 0 | W159: 0 | X159: 0 | Y159: 0 | Z159: 0 | AA159: 0 | AB159: =MAX(-AB158,0) -> 0 | AC159: 0 | AD159: 0 | AE159: 0 | AF159: 0 | AG159: 0 | AH159: 0 | AI159: 0 | AJ159: 0 | AK159: 0 | AL159: 0 | AM159: 0 | AN159: 0
B160: Less: Repayment of Default | H160: =MIN(MAX(H158,0),H94) -> 0 | I160: =MIN(MAX(I158,0),I94) -> 0 | J160: 0 | K160: 0 | L160: 0 | M160: 0 | N160: 0 | O160: 0 | P160: 0 | Q160: 0 | R160: 0 | S160: 0 | T160: 0 | U160: 0 | V160: 0 | W160: 0 | X160: 0 | Y160: 0 | Z160: 0 | AA160: 0 | AB160: =MIN(MAX(AB158,0),AB94) -> 0 | AC160: 0 | AD160: 0 | AE160: 0 | AF160: 0 | AG160: 0 | AH160: 0 | AI160: 0 | AJ160: 0 | AK160: 0 | AL160: 0 | AM160: 0 | AN160: 0
C161: Cash After Default | H161: =H158+H159-H160 -> 206.1664091 | I161: =I158+I159-I160 -> 206.1664091 | J161: 206.1664091 | K161: 206.1664091 | L161: 274.8885454 | M161: 274.8885454 | N161: 274.8885454 | O161: 274.8885454 | P161: 274.8885454 | Q161: 320.703303 | R161: 304.2307692 | S161: 304.2307692 | T161: 304.2307692 | U161: 304.2307692 | V161: 304.2307692 | W161: 304.2307692 | X161: 304.2307692 | Y161: 304.2307692 | Z161: 304.2307692 | AA161: 304.2307692 | AB161: =AB158+AB159-AB160 -> 304.2307692 | AC161: 304.2307692 | AD161: 304.2307692 | AE161: 304.2307692 | AF161: 304.2307692 | AG161: 304.2307692 | AH161: 304.2307692 | AI161: 304.2307692 | AJ161: 304.2307692 | AK161: 1318.333333 | AL161: 1318.333333 | AM161: 1318.333333 | AN161: 1318.333333
B162: Add: New Financing | H162: =H150 -> 0 | I162: =I150 -> 0 | J162: 0 | K162: 0 | L162: 0 | M162: 0 | N162: 0 | O162: 0 | P162: 0 | Q162: 13319.16162 | R162: 0 | S162: 0 | T162: 0 | U162: 0 | V162: 0 | W162: 0 | X162: 0 | Y162: 0 | Z162: 0 | AA162: 0 | AB162: =AB150 -> 0 | AC162: 0 | AD162: 0 | AE162: 0 | AF162: 0 | AG162: 0 | AH162: 0 | AI162: 0 | AJ162: 0 | AK162: 0 | AL162: 0 | AM162: 0 | AN162: 0
B163: Less: Repayment of Existing | H163: =H149 -> 0 | I163: =I149 -> 0 | J163: 0 | K163: 0 | L163: 0 | M163: 0 | N163: 0 | O163: 0 | P163: 0 | Q163: 10355.05856 | R163: 0 | S163: 0 | T163: 0 | U163: 0 | V163: 0 | W163: 0 | X163: 0 | Y163: 0 | Z163: 0 | AA163: 0 | AB163: =AB149 -> 0 | AC163: 0 | AD163: 0 | AE163: 0 | AF163: 0 | AG163: 0 | AH163: 0 | AI163: 0 | AJ163: 0 | AK163: 0 | AL163: 0 | AM163: 0 | AN163: 0
B165: Equity cash flow | H165: =H161+H162-H163 -> 206.1664091 | I165: =I161+I162-I163 -> 206.1664091 | J165: 206.1664091 | K165: 206.1664091 | L165: 274.8885454 | M165: 274.8885454 | N165: 274.8885454 | O165: 274.8885454 | P165: 274.8885454 | Q165: 3284.80636 | R165: 304.2307692 | S165: 304.2307692 | T165: 304.2307692 | U165: 304.2307692 | V165: 304.2307692 | W165: 304.2307692 | X165: 304.2307692 | Y165: 304.2307692 | Z165: 304.2307692 | AA165: 304.2307692 | AB165: =AB161+AB162-AB163 -> 304.2307692 | AC165: 304.2307692 | AD165: 304.2307692 | AE165: 304.2307692 | AF165: 304.2307692 | AG165: 304.2307692 | AH165: 304.2307692 | AI165: 304.2307692 | AJ165: 304.2307692 | AK165: 1318.333333 | AL165: 1318.333333 | AM165: 1318.333333 | AN165: 1318.333333
A167: Financial ratios
B168: Net equity cash flow | G168: =-G63 -> -1365.5 | H168: =H165 -> 206.1664091 | I168: =I165 -> 206.1664091 | J168: 206.1664091 | K168: 206.1664091 | L168: 274.8885454 | M168: 274.8885454 | N168: 274.8885454 | O168: 274.8885454 | P168: 274.8885454 | Q168: 3284.80636 | R168: 304.2307692 | S168: 304.2307692 | T168: 304.2307692 | U168: 304.2307692 | V168: 304.2307692 | W168: 304.2307692 | X168: 304.2307692 | Y168: 304.2307692 | Z168: 304.2307692 | AA168: 304.2307692 | AB168: =AB165 -> 304.2307692 | AC168: 304.2307692 | AD168: 304.2307692 | AE168: 304.2307692 | AF168: 304.2307692 | AG168: 304.2307692 | AH168: 304.2307692 | AI168: 304.2307692 | AJ168: 304.2307692 | AK168: 1318.333333 | AL168: 1318.333333 | AM168: 1318.333333 | AN168: 1318.333333
B169: Equity IRR | G169: =IRR(168:168) -> 0.2377482404
B171: CFADS | H171: =H153 -> 847.5 | I171: =I153 -> 847.5 | J171: 847.5 | K171: 847.5 | L171: 1130 | M171: 1130 | N171: 1130 | O171: 1130 | P171: 1130 | Q171: 1318.333333 | R171: 1318.333333 | S171: 1318.333333 | T171: 1318.333333 | U171: 1318.333333 | V171: 1318.333333 | W171: 1318.333333 | X171: 1318.333333 | Y171: 1318.333333 | Z171: 1318.333333 | AA171: 1318.333333 | AB171: =AB153 -> 1318.333333 | AC171: 1318.333333 | AD171: 1318.333333 | AE171: 1318.333333 | AF171: 1318.333333 | AG171: 1318.333333 | AH171: 1318.333333 | AI171: 1318.333333 | AJ171: 1318.333333 | AK171: 1318.333333 | AL171: 1318.333333 | AM171: 1318.333333 | AN171: 1318.333333
B172: Debt service | H172: =H154+H155 -> 641.3335909 | I172: =I154+I155 -> 641.3335909 | J172: 641.3335909 | K172: 641.3335909 | L172: 855.1114546 | M172: 855.1114546 | N172: 855.1114546 | O172: 855.1114546 | P172: 855.1114546 | Q172: 997.6300304 | R172: 1014.102564 | S172: 1014.102564 | T172: 1014.102564 | U172: 1014.102564 | V172: 1014.102564 | W172: 1014.102564 | X172: 1014.102564 | Y172: 1014.102564 | Z172: 1014.102564 | AA172: 1014.102564 | AB172: =AB154+AB155 -> 1014.102564 | AC172: 1014.102564 | AD172: 1014.102564 | AE172: 1014.102564 | AF172: 1014.102564 | AG172: 1014.102564 | AH172: 1014.102564 | AI172: 1014.102564 | AJ172: 1014.102564 | AK172: 0 | AL172: 0 | AM172: 0 | AN172: 0
B173: DSCR | F173: =MIN(H173:AA173) -> 1.3 | H173: =IF(H172>0.1,H171/H172) -> 1.321465166 | I173: =IF(I172>0.1,I171/I172) -> 1.321465166 | J173: 1.321465166 | K173: 1.321465166 | L173: 1.321465166 | M173: 1.321465166 | N173: 1.321465166 | O173: 1.321465166 | P173: 1.321465166 | Q173: 1.321465166 | R173: 1.3 | S173: 1.3 | T173: 1.3 | U173: 1.3 | V173: 1.3 | W173: 1.3 | X173: 1.3 | Y173: 1.3 | Z173: 1.3 | AA173: 1.3 | AB173: =IF(AB172>0.1,AB171/AB172) -> 1.3 | AC173: 1.3 | AD173: 1.3 | AE173: 1.3 | AF173: 1.3 | AG173: 1.3 | AH173: 1.3 | AI173: 1.3 | AJ173: 1.3 | AK173: FALSE | AL173: FALSE | AM173: FALSE | AN173: FALSE
B175: PV of CFADS | E175: =F20 -> 0.05 | F175: =NPV(E175,H171:AA171) -> 14088.97654
B176: PV of Debt service | F176: =G62 -> 12289.5
B177: PLCR | F177: =F175/F176 -> 1.146423901
B179: Debt Repayment Switch | F179: =F19 -> 25 | H179: =H2<=$F$179 -> TRUE | I179: TRUE | J179: TRUE | K179: TRUE | L179: TRUE | M179: TRUE | N179: TRUE | O179: TRUE | P179: TRUE | Q179: TRUE | R179: TRUE | S179: TRUE | T179: TRUE | U179: TRUE | V179: TRUE | W179: TRUE | X179: TRUE | Y179: TRUE | Z179: TRUE | AA179: TRUE | AB179: =AB2<=$F$179 -> TRUE | AC179: TRUE | AD179: TRUE | AE179: TRUE | AF179: TRUE | AG179: FALSE | AH179: FALSE | AI179: FALSE | AJ179: FALSE | AK179: FALSE | AL179: FALSE | AM179: FALSE | AN179: FALSE
B180: PV of CFADS over loan life | E180: =F20 -> 0.05 | F180: =NPV(E180,H180:AA180) -> 14088.97654 | H180: =H171*H179 -> 847.5 | I180: =I171*I179 -> 847.5 | J180: 847.5 | K180: 847.5 | L180: 1130 | M180: 1130 | N180: 1130 | O180: 1130 | P180: 1130 | Q180: 1318.333333 | R180: 1318.333333 | S180: 1318.333333 | T180: 1318.333333 | U180: 1318.333333 | V180: 1318.333333 | W180: 1318.333333 | X180: 1318.333333 | Y180: 1318.333333 | Z180: 1318.333333 | AA180: 1318.333333 | AB180: =AB171*AB179 -> 1318.333333 | AC180: 1318.333333 | AD180: 1318.333333 | AE180: 1318.333333 | AF180: 1318.333333 | AG180: 0 | AH180: 0 | AI180: 0 | AJ180: 0 | AK180: 0 | AL180: 0 | AM180: 0 | AN180: 0
B181: PV of Debt service | F181: =F176 -> 12289.5
B182: LLCR | F182: =F180/F181 -> 1.146423901
H184: =H2 -> 1 | I184: 2 | J184: 3 | K184: 4 | L184: 5 | M184: 6 | N184: 7 | O184: 8 | P184: 9 | Q184: 10 | R184: 11 | S184: 12 | T184: 13 | U184: 14 | V184: 15 | W184: 16 | X184: 17 | Y184: 18 | Z184: 19 | AA184: 20 | AB184: =AB2 -> 21 | AC184: 22 | AD184: 23 | AE184: 24 | AF184: 25 | AG184: 26 | AH184: 27 | AI184: 28 | AJ184: 29 | AK184: 30 | AL184: 31 | AM184: 32 | AN184: 33
B185: Total Debt | H185: =H90+H98 -> 12262.64141 | I185: =I90+I98 -> 12234.43989 | J185: 12204.82829 | K185: 12173.73612 | L185: 11927.31147 | M185: 11668.56559 | N185: 11396.88241 | O185: 11111.61508 | P185: 10812.08438 | Q185: 0 | R185: 0 | S185: 0 | T185: 0 | U185: 0 | V185: 0 | W185: 0 | X185: 0 | Y185: 0 | Z185: 0 | AA185: 0 | AB185: =AB90+AB98 -> 0 | AC185: 0 | AD185: 0 | AE185: 0 | AF185: 0 | AG185: 0 | AH185: 0 | AI185: 0 | AJ185: 0 | AK185: 0 | AL185: 0 | AM185: 0 | AN185: 0
H187: =H184 -> 1 | I187: =I184 -> 2 | J187: 3 | K187: 4 | L187: 5 | M187: 6 | N187: 7 | O187: 8 | P187: 9 | Q187: 10 | R187: 11 | S187: 12 | T187: 13 | U187: 14 | V187: 15 | W187: 16 | X187: 17 | Y187: 18 | Z187: 19 | AA187: 20 | AB187: =AB184 -> 21 | AC187: 22 | AD187: 23 | AE187: 24 | AF187: 25 | AG187: 26 | AH187: 27 | AI187: 28 | AJ187: 29 | AK187: 30 | AL187: 31 | AM187: 32 | AN187: 33
B188: CFADS | H188: =H171 -> 847.5 | I188: =I171 -> 847.5 | J188: 847.5 | K188: 847.5 | L188: 1130 | M188: 1130 | N188: 1130 | O188: 1130 | P188: 1130 | Q188: 1318.333333 | R188: 1318.333333 | S188: 1318.333333 | T188: 1318.333333 | U188: 1318.333333 | V188: 1318.333333 | W188: 1318.333333 | X188: 1318.333333 | Y188: 1318.333333 | Z188: 1318.333333 | AA188: 1318.333333 | AB188: =AB171 -> 1318.333333 | AC188: 1318.333333 | AD188: 1318.333333 | AE188: 1318.333333 | AF188: 1318.333333 | AG188: 1318.333333 | AH188: 1318.333333 | AI188: 1318.333333 | AJ188: 1318.333333 | AK188: 1318.333333 | AL188: 1318.333333 | AM188: 1318.333333 | AN188: 1318.333333
B189: Interest | H189: =H154 -> 614.475 | I189: =I154 -> 613.1320705 | J189: 611.7219944 | K189: 610.2414146 | L189: 608.6868058 | M189: 596.3655733 | N189: 583.4282793 | O189: 569.8441205 | P189: 555.5807538 | Q189: 540.6042188 | R189: 532.7664648 | S189: 513.5130209 | T189: 493.4894391 | U189: 472.6649141 | V189: 451.0074081 | W189: 428.4836019 | X189: 405.0588434 | Y189: 380.6970946 | Z189: 355.3608758 | AA189: 329.0112083 | AB189: =AB154 -> 301.607554 | AC189: 273.1077536 | AD189: 243.4679612 | AE189: 212.6425771 | AF189: 180.5841776 | AG189: 147.2434422 | AH189: 112.5690773 | AI189: 76.50773782 | AJ189: 39.00394477 | AK189: 0 | AL189: 0 | AM189: 0 | AN189: 0
B190: Repayment | H190: =H155 -> 26.85859095 | I190: =I155 -> 28.2015205 | J190: 29.61159652 | K190: 31.09217635 | L190: 246.4246488 | M190: 258.7458813 | N190: 271.6831753 | O190: 285.2673341 | P190: 299.5307008 | Q190: 457.0258116 | R190: 481.3360993 | S190: 500.5895432 | T190: 520.613125 | U190: 541.43765 | V190: 563.095156 | W190: 585.6189622 | X190: 609.0437207 | Y190: 633.4054695 | Z190: 658.7416883 | AA190: 685.0913558 | AB190: =AB155 -> 712.4950101 | AC190: 740.9948105 | AD190: 770.6346029 | AE190: 801.459987 | AF190: 833.5183865 | AG190: 866.8591219 | AH190: 901.5334868 | AI190: 937.5948263 | AJ190: 975.0986193 | AK190: 0 | AL190: 0 | AM190: 0 | AN190: 0
B191: Sweep | H191: =H157 -> 0 | I191: =I157 -> 0 | J191: 0 | K191: 0 | L191: 0 | M191: 0 | N191: 0 | O191: 0 | P191: 0 | Q191: 0 | R191: 0 | S191: 0 | T191: 0 | U191: 0 | V191: 0 | W191: 0 | X191: 0 | Y191: 0 | Z191: 0 | AA191: 0 | AB191: =AB157 -> 0 | AC191: 0 | AD191: 0 | AE191: 0 | AF191: 0 | AG191: 0 | AH191: 0 | AI191: 0 | AJ191: 0 | AK191: 0 | AL191: 0 | AM191: 0 | AN191: 0
B192: Default Repayment | H192: =H160 -> 0 | I192: =I160 -> 0 | J192: 0 | K192: 0 | L192: 0 | M192: 0 | N192: 0 | O192: 0 | P192: 0 | Q192: 0 | R192: 0 | S192: 0 | T192: 0 | U192: 0 | V192: 0 | W192: 0 | X192: 0 | Y192: 0 | Z192: 0 | AA192: 0 | AB192: =AB160 -> 0 | AC192: 0 | AD192: 0 | AE192: 0 | AF192: 0 | AG192: 0 | AH192: 0 | AI192: 0 | AJ192: 0 | AK192: 0 | AL192: 0 | AM192: 0 | AN192: 0
B195: Price | E195: =F14 -> 25.7 | I195: Min DSCR | J195: =F173 -> 1.3 | K195: PLCR | L195: =F177 -> 1.146423901 | M195: LLCR | N195: =F182 -> 1.146423901 | O195: Equity IRR | P195: =G169 -> 0.2377482404 | Q195: Sculpting Size | R195: =F24 -> TRUE | S195: Debt/Cap Size | T195: =F23 -> TRUE | U195: Debt to Cap | W195: =H62 -> 0.9 | X195: Sweep | Y195: =F21 -> 0 | Z195: Tenor | AA195: =F19 -> 25 | AB195: =G19 -> 0 | AC195: 0 | AD195: 0 | AE195: 0 | AF195: 0 | AG195: 0 | AH195: 0 | AI195: Actual | AJ195: 1.3 | AK195: 90 | AL195: 0 | AM195: 0 | AN195: 0
D199: ="Re-financing "&G27&" "&H27&" "&I27 -> Re-financing 10 99 99
H201: Refinance DSCR | J201: 1 | K201: =G28 -> 1.3 | L201: 2 | M201: =H28 -> 1.25 | N201: 3 | O201: =I28 -> 1.2 | P201: Refinance Tail | R201: 1 | S201: =G29 -> 4 | T201: 2 | U201: =H29 -> 2 | V201: 3 | W201: =I29 -> 0 | X201: Refinance Interest Rate | AA201: 1 | AB201: =G31 -> 0.04 | AC201: 2 | AD201: =H31 -> 0.04 | AE201: 3 | AF201: =I31 -> 0.04

Sheet Sensitivity
C3: Oil price | D3: =F3/10 -> 25.7 | F3: 257
C5: Sensitivity | D5: =F5/100 -> 1 | F5: 100
C11: first | D11: 10
C12: second | D12: 99
C13: third | D13: 99

Sheet Sources and Uses
A2: Funding | B2: Euro | C2: PLN | D2: Percent | F2: Funding | G2: Euro | H2: PLN | I2: Percent
A3: Requirement | B3: (mils) | C3: (mils) | D3: of Total | F3: Sources | G3: (mils) | H3: (mils) | I3: of Total
A4: Construction costs | B4: 622 | C4: 2804 | D4: 0.665 | F4: Equity | G4: 108 | H4: 461 | I4: 0.109
A5: Design costs | B5: 16 | C5: 69 | D5: 0.016 | F5: Shareholder loan A | G5: 73 | H5: 327 | I5: 0.078 | L5: Case 1 | M5: =I7 -> 0.244 | P5: Base | Q5: =M11 -> 0.6884368308 | S5: Base | T5: =Q5 -> 0.6884368308
A6: Owners’ and other costs | B6: 63 | C6: 269 | D6: 0.064 | F6: Shareholder loan B | G6: 53 | H6: 239 | I6: 0.057 | P6: Owners Cost | Q6: =M32 -> 0.713255685 | S6: Owners Cost | T6: =Q6-T5 -> 0.02481885413
A7: Pre-operating costs | B7: 3 | C7: 13 | D7: 0.003 | F7: Shareholder funds | G7: 235 | H7: 1027 | I7: 0.244 | P7: Rev/Exp | Q7: =L52 -> 0.7604967475 | S7: Rev/Exp | T7: =Q7-Q6 -> 0.04724106252
A8: Concession costs | B8: 10 | C8: 37 | D8: 0.009 | P8: IDC | Q8: =M72 -> 0.9049964814 | S8: IDC | T8: =Q8-Q7 -> 0.1444997339
A9: Project Costs | B9: 713 | C9: 3192 | D9: 0.757 | F9: Senior debt | G9: 242 | H9: 1100 | I9: 0.261 | P9: Final | S9: Final
F10: Bonds (3 tranches) | G10: 266 | H10: 1196 | I10: 0.284
A11: Loan fees | B11: 9 | C11: 38 | D11: 0.009 | F11: Bond interest, F /X losses | G11: 135 | H11: 630 | I11: 0.149 | M11: =I12 -> 0.6884368308
A12: Interest rolled-up | B12: 182 | C12: 852 | D12: 0.202 | F12: Debt funds | G12: 643 | H12: 2926 | I12: =G12/G18 -> 0.6884368308
A13: Capital reserve account | B13: 11 | C13: 52 | D13: 0.012
A14: O&M during construction | B14: 15 | C14: 73 | D14: 0.017 | F14: Total Capital | G14: 878 | H14: 3953 | I14: 0.938
A15: Taxes | B15: 2 | C15: 8 | D15: 0.002
A16: Working capital | B16: -2 | C16: -4 | D16: -0.001 | F16: Early toll revenues | G16: 34 | H16: 164 | I16: 0.039
A17: Cash | B17: 4 | C17: 5 | D17: 0.001 | F17: Interest on cash balance | G17: 22 | H17: 100 | I17: 0.024
A18: Total Requirement | B18: 934 | C18: 4217 | D18: 1 | F18: Total Sources | G18: 934 | H18: 4217 | I18: 1
A21: Scenario 1 (50% owners cost)
A22: Funding | B22: Euro | C22: PLN | D22: Percent | F22: Funding | G22: Euro | H22: PLN | I22: Percent
A23: Requirement | B23: (mils) | C23: (mils) | D23: of Total | F23: Sources | G23: (mils) | H23: (mils) | I23: of Total
A24: Construction costs | B24: 622 | C24: 2804 | D24: =B24/$B$38 -> 0.6884338683 | F24: Equity | G24: =108-31.5 -> 76.5 | H24: 461 | I24: =G24/$G$38 -> 0.08485856905
A25: Design costs | B25: 16 | C25: 69 | D25: =B25/$B$38 -> 0.0177089098 | F25: Shareholder loan A | G25: 73 | H25: 327 | I25: =G25/$G$38 -> 0.08097615086 | L25: Case 2 | M25: =I27 -> 0.224625624
A26: Owners’ and other costs | B26: =63/2 -> 31.5 | C26: 269 | D26: 0.03486441616 | F26: Shareholder loan B | G26: 53 | H26: 239 | I26: 0.05879090405
A27: Pre-operating costs | B27: 3 | C27: 13 | D27: 0.003320420587 | F27: Shareholder funds | G27: =SUM(G24:G26) -> 202.5 | H27: 1027 | I27: 0.224625624
A28: Concession costs | B28: 10 | C28: 37 | D28: 0.01106806862
A29: Project Costs | B29: =SUM(B24:B28) -> 682.5 | C29: 3192 | D29: 0.7553956835 | F29: Senior debt | G29: 242 | H29: 1100 | I29: =G29/$G$38 -> 0.2684414864
F30: Bonds (3 tranches) | G30: 266 | H30: 1196 | I30: 0.2950637826
A31: Loan fees | B31: 9 | C31: 38 | D31: =B31/$B$38 -> 0.00996126176 | F31: Bond interest, F /X losses | G31: 135 | H31: 630 | I31: 0.149750416
A32: Interest rolled-up | B32: 182 | C32: 852 | D32: 0.2014388489 | F32: Debt funds | G32: 643 | H32: 2926 | I32: =G32/G38 -> 0.713255685 | M32: =I32 -> 0.713255685
A33: Capital reserve account | B33: 11 | C33: 52 | D33: 0.01217487548
A34: O&M during construction | B34: 15 | C34: 73 | D34: 0.01660210293 | F34: Total Capital | G34: =G32+G27 -> 845.5 | H34: 3953 | I34: =G34/$G$38 -> 0.9378813089
A35: Taxes | B35: 2 | C35: 8 | D35: 0.002213613724
A36: Working capital | B36: -2 | C36: -4 | D36: -0.002213613724 | F36: Early toll revenues | G36: 34 | H36: 164 | I36: =G36/$G$38 -> 0.03771491958
A37: Cash | B37: 4 | C37: 5 | D37: 0.004427227449 | F37: Interest on cash balance | G37: 22 | H37: 100 | I37: =G37/$G$38 -> 0.02440377149
A38: Total Requirement | B38: =SUM(B29:B37) -> 903.5 | C38: 4217 | D38: 1 | F38: Total Sources | G38: =SUM(G34:G37) -> 901.5 | H38: 4217 | I38: 1
A41: Scenario 2a (Change Income Recognition)
A42: Funding | B42: Euro | C42: PLN | D42: Percent | F42: Funding | G42: Euro | H42: PLN | I42: Percent
A43: Requirement | B43: (mils) | C43: (mils) | D43: of Total | F43: Sources | G43: (mils) | H43: (mils) | I43: of Total
A44: Construction costs | B44: 622 | C44: 2804 | D44: =B44/$B$38 -> 0.6884338683 | F44: Equity | G44: =108-31.5 -> 76.5 | H44: 461 | I44: =G44/$G$38 -> 0.08485856905
A45: Design costs | B45: 16 | C45: 69 | D45: =B45/$B$38 -> 0.0177089098 | F45: Shareholder loan A | G45: 73 | H45: 327 | I45: =G45/$G$38 -> 0.08097615086
A46: Owners’ and other costs | B46: =63/2 -> 31.5 | C46: 269 | D46: 0.03486441616 | F46: Shareholder loan B | G46: 53 | H46: 239 | I46: 0.05879090405
A47: Pre-operating costs | B47: 3 | C47: 13 | D47: 0.003320420587 | F47: Shareholder funds | G47: =SUM(G44:G46) -> 202.5 | H47: 1027 | I47: 0.224625624
A48: Concession costs | B48: 10 | C48: 37 | D48: 0.01106806862
A49: Project Costs | B49: =SUM(B44:B48) -> 682.5 | C49: 3192 | D49: 0.7553956835 | F49: Senior debt | G49: 242 | H49: 1100 | I49: =G49/$G$38 -> 0.2684414864
F50: Bonds (3 tranches) | G50: 266 | H50: 1196 | I50: 0.2950637826
A51: Loan fees | B51: 9 | C51: 38 | D51: =B51/$B$38 -> 0.00996126176 | F51: Bond interest, F /X losses | G51: 135 | H51: 630 | I51: 0.149750416
A52: Interest rolled-up | B52: =182-22 -> 160 | C52: 852 | D52: 0.177089098 | F52: Debt funds | G52: 643 | H52: 2926 | I52: =G52/G58 -> 0.7604967475 | L52: =I52 -> 0.7604967475
A53: Capital reserve account | B53: 11 | C53: 52 | D53: 0.01217487548
A54: O&M during construction | B54: =15-36 -> -21 | C54: 73 | D54: -0.02324294411 | F54: Total Capital | G54: =G52+G47 -> 845.5 | H54: 3953 | I54: =G54/$G$38 -> 0.9378813089
A55: Taxes | B55: 2 | C55: 8 | D55: 0.002213613724
A56: Working capital | B56: -2 | C56: -4 | D56: -0.002213613724 | F56: Early toll revenues | G56: 0 | H56: 164 | I56: =G56/$G$38 -> 0
A57: Cash | B57: 4 | C57: 5 | D57: 0.004427227449 | F57: Interest on cash balance | G57: 0 | H57: 100 | I57: =G57/$G$38 -> 0
A58: Total Requirement | B58: =SUM(B49:B57) -> 845.5 | C58: 4217 | D58: 1 | F58: Total Sources | G58: =SUM(G54:G57) -> 845.5 | H58: 4217 | I58: 1
A61: Scenario 2 (Reduction of IDC by Bond interest)
A62: Funding | B62: Euro | C62: PLN | D62: Percent | F62: Funding | G62: Euro | H62: PLN | I62: Percent
A63: Requirement | B63: (mils) | C63: (mils) | D63: of Total | F63: Sources | G63: (mils) | H63: (mils) | I63: of Total
A64: Construction costs | B64: 622 | C64: 2804 | D64: =B64/$B$78 -> 0.8754398311 | F64: Equity | G64: =108-31.5-135 -> -58.5 | H64: 461 | I64: =G64/$G$78 -> -0.08233638283
A65: Design costs | B65: 16 | C65: 69 | D65: =B65/$B$78 -> 0.02251935257 | F65: Shareholder loan A | G65: 73 | H65: 327 | I65: =G65/$G$78 -> 0.1027445461 | L65: Case 3 | M65: =I67 -> 0.09500351865
A66: Owners’ and other costs | B66: =63/2 -> 31.5 | C66: 269 | D66: 0.04433497537 | F66: Shareholder loan B | G66: 53 | H66: 239 | I66: 0.07459535538
A67: Pre-operating costs | B67: 3 | C67: 13 | D67: 0.004222378607 | F67: Shareholder funds | G67: =SUM(G64:G66) -> 67.5 | H67: 1027 | I67: 0.09500351865
A68: Concession costs | B68: 10 | C68: 37 | D68: 0.01407459536
A69: Project Costs | B69: =SUM(B64:B68) -> 682.5 | C69: 3192 | D69: 0.960591133 | F69: Senior debt | G69: 242 | H69: 1100 | I69: =G69/$G$78 -> 0.3406052076
F70: Bonds (3 tranches) | G70: 266 | H70: 1196 | I70: 0.3743842365
A71: Loan fees | B71: 9 | C71: 38 | D71: =B71/$B$78 -> 0.01266713582 | F71: Bond interest, F /X losses | G71: 135 | H71: 630 | I71: 0.1900070373
A72: Interest rolled-up | B72: =182-135-22 -> 25 | C72: 852 | D72: =B72/$B$78 -> 0.03518648839 | F72: Debt funds | G72: =SUM(G69:G71) -> 643 | H72: =SUM(H69:H71) -> 2926 | I72: 0.9049964814 | M72: =I72 -> 0.9049964814
A73: Capital reserve account | B73: 11 | C73: 52 | D73: 0.01548205489
A74: O&M during construction | B74: =15-36 -> -21 | C74: 73 | D74: -0.02955665025 | F74: Total Capital | G74: =G72+G67 -> 710.5 | H74: 3953 | I74: =G74/$G$78 -> 1
A75: Taxes | B75: 2 | C75: 8 | D75: 0.002814919071
A76: Working capital | B76: -2 | C76: -4 | D76: -0.002814919071 | F76: Early toll revenues | G76: 0 | H76: 164 | I76: =G76/$G$78 -> 0
A77: Cash | B77: 4 | C77: 5 | D77: 0.005629838142 | F77: Interest on cash balance | G77: 0 | H77: 100 | I77: =G77/$G$78 -> 0
A78: Total Requirement | B78: =SUM(B69:B77) -> 710.5 | C78: 4217 | D78: 1 | F78: Total Sources | G78: =SUM(G74:G77) -> 710.5 | H78: 4217 | I78: 1
A81: Scenario 3 (O&M Cost net of Revenue)
A82: Funding | B82: Euro | C82: PLN | D82: Percent | F82: Funding | G82: Euro | H82: PLN | I82: Percent
A83: Requirement | B83: (mils) | C83: (mils) | D83: of Total | F83: Sources | G83: (mils) | H83: (mils) | I83: of Total
A84: Construction costs | B84: 622 | C84: 2804 | D84: =B84/$B$98 -> 0.8468345813 | F84: Equity | G84: =108-31.5-135 -> -58.5 | H84: 461 | I84: =G84/$G$98 -> -0.07986348123
A85: Design costs | B85: 16 | C85: 69 | D85: =B85/$B$98 -> 0.02178352621 | F85: Shareholder loan A | G85: 73 | H85: 327 | I85: =G85/$G$98 -> 0.09965870307 | L85: Case 4 | M85: =I87 -> 0.09215017065
A86: Owners’ and other costs | B86: =63/2 -> 31.5 | C86: 269 | D86: 0.04288631722 | F86: Shareholder loan B | G86: 53 | H86: 239 | I86: 0.07235494881
A87: Pre-operating costs | B87: 3 | C87: 13 | D87: 0.004084411164 | F87: Shareholder funds | G87: =SUM(G84:G86) -> 67.5 | H87: 1027 | I87: 0.09215017065
A88: Concession costs | B88: 10 | C88: 37 | D88: 0.01361470388
A89: Project Costs | B89: =SUM(B84:B88) -> 682.5 | C89: 3192 | D89: 0.9292035398 | F89: Senior debt | G89: 242 | H89: 1100 | I89: =G89/$G$98 -> 0.3303754266
F90: Bonds (3 tranches) | G90: 266 | H90: 1196 | I90: 0.3631399317
A91: Loan fees | B91: 9 | C91: 38 | D91: =B91/$B$98 -> 0.01225323349 | F91: Bond interest, F /X losses | G91: 135 | H91: 630 | I91: 0.1843003413
A92: Interest rolled-up | B92: =182-135 -> 47 | C92: 852 | D92: 0.06398910824 | F92: Debt funds | G92: =SUM(G89:G91) -> 643 | H92: =SUM(H89:H91) -> 2926 | I92: 0.8778156997 | M92: =I92 -> 0.8778156997
A93: Capital reserve account | B93: 11 | C93: 52 | D93: 0.01497617427
A94: O&M during construction | B94: =15-34 -> -19 | C94: 73 | D94: -0.02586793737 | F94: Total Capital | G94: =G92+G87 -> 710.5 | H94: 3953 | I94: =G94/$G$98 -> 0.9699658703
A95: Taxes | B95: 2 | C95: 8 | D95: 0.002722940776
A96: Working capital | B96: -2 | C96: -4 | D96: -0.002722940776 | F96: Early toll revenues | G96: =34-34 -> 0 | H96: 164 | I96: =G96/$G$98 -> 0
A97: Cash | B97: 4 | C97: 5 | D97: 0.005445881552 | F97: Interest on cash balance | G97: 22 | H97: 100 | I97: 0.03003412969
A98: Total Requirement | B98: =SUM(B89:B97) -> 734.5 | C98: 4217 | D98: 1 | F98: Total Sources | G98: =SUM(G94:G97) -> 732.5 | H98: 4217 | I98: 1
